[Event "Live Chess"]
[Site "Chess.com"]
[Date "2023.05.20"]
[Round "-"]
[White "OceanFloater"]
[Black "KeithArkell"]
[Result "0-1"]
[WhiteElo "982"]
[BlackElo "2612"]
[TimeControl "300"]
[EndTime "12:57:18 PDT"]
[Termination "KeithArkell won by checkmate"]

1. e4 {[%clk 0:04:58.7]} 1... c6 {[%clk 0:04:59]} 2. d4 {[%clk 0:04:56.6]} 2...
d5 {[%clk 0:04:58.4]} 3. e5 {[%clk 0:04:55]} 3... c5 {[%clk 0:04:57.7]} 4. dxc5
{[%clk 0:04:53.1]} 4... Nc6 {[%clk 0:04:56.6]} 5. Nf3 {[%clk 0:04:49.8]} 5...
Bg4 {[%clk 0:04:55.6]} 6. h3 {[%clk 0:04:47.2]} 6... Bxf3 {[%clk 0:04:54.2]} 7.
Qxf3 {[%clk 0:04:46.6]} 7... e6 {[%clk 0:04:53.7]} 8. Bf4 {[%clk 0:04:43.6]}
8... Bxc5 {[%clk 0:04:52.6]} 9. Nc3 {[%clk 0:04:39.7]} 9... Nge7 {[%clk
0:04:51.5]} 10. Nb5 {[%clk 0:04:37.7]} 10... Ng6 {[%clk 0:04:49.9]} 11. Nd6+
{[%clk 0:04:35.5]} 11... Bxd6 {[%clk 0:04:48.8]} 12. exd6 {[%clk 0:04:34.4]}
12... Nxf4 {[%clk 0:04:47.2]} 13. Qxf4 {[%clk 0:04:33.6]} 13... O-O {[%clk
0:04:46.1]} 14. Bb5 {[%clk 0:04:28.3]} 14... Qf6 {[%clk 0:04:42.7]} 15. Qxf6
{[%clk 0:04:23.7]} 15... gxf6 {[%clk 0:04:42.6]} 16. O-O-O {[%clk 0:04:18]}
16... Rfd8 {[%clk 0:04:41.7]} 17. c4 {[%clk 0:04:12.9]} 17... a6 {[%clk
0:04:35.3]} 18. Ba4 {[%clk 0:04:08.9]} 18... dxc4 {[%clk 0:04:32.5]} 19. d7
{[%clk 0:04:06.1]} 19... b5 {[%clk 0:04:31.1]} 20. Bc2 {[%clk 0:04:04.7]} 20...
Ne5 {[%clk 0:04:29.1]} 21. b3 {[%clk 0:03:58.1]} 21... cxb3 {[%clk 0:04:26.4]}
22. Bxb3 {[%clk 0:03:54.7]} 22... Rxd7 {[%clk 0:04:25.3]} 23. Rxd7 {[%clk
0:03:52.9]} 23... Nxd7 {[%clk 0:04:25.2]} 24. Rd1 {[%clk 0:03:51.9]} 24... Nc5
{[%clk 0:04:24.5]} 25. Bc2 {[%clk 0:03:49.6]} 25... Rc8 {[%clk 0:04:23.3]} 26.
Kb2 {[%clk 0:03:47.8]} 26... f5 {[%clk 0:04:21.3]} 27. g4 {[%clk 0:03:45.5]}
27... fxg4 {[%clk 0:04:19.5]} 28. hxg4 {[%clk 0:03:44.3]} 28... Kg7 {[%clk
0:04:19.1]} 29. Rd6 {[%clk 0:03:41.5]} 29... h6 {[%clk 0:04:17.4]} 30. f3 {[%clk
0:03:37.4]} 30... Kf6 {[%clk 0:04:16]} 31. Bb3 {[%clk 0:03:29.2]} 31... Nxb3
{[%clk 0:04:14.2]} 32. axb3 {[%clk 0:03:28.2]} 32... Ra8 {[%clk 0:04:11.2]} 33.
Rb6 {[%clk 0:03:26.5]} 33... Ra7 {[%clk 0:04:09.6]} 34. b4 {[%clk 0:03:25.9]}
34... Ke5 {[%clk 0:04:08.6]} 35. Rc6 {[%clk 0:03:24]} 35... Kf4 {[%clk
0:04:06.9]} 36. Rc3 {[%clk 0:03:23]} 36... a5 {[%clk 0:04:06.4]} 37. bxa5 {[%clk
0:03:18.7]} 37... Rxa5 {[%clk 0:04:06.3]} 38. Kb3 {[%clk 0:03:17.8]} 38... Ra4
{[%clk 0:04:05.3]} 39. Rc7 {[%clk 0:03:13.1]} 39... Kxf3 {[%clk 0:04:02.2]} 40.
Rxf7+ {[%clk 0:03:12]} 40... Kxg4 {[%clk 0:04:01.6]} 41. Rf6 {[%clk 0:03:11.4]}
41... h5 {[%clk 0:03:59.6]} 42. Rxe6 {[%clk 0:03:10.6]} 42... Rf4 {[%clk
0:03:57.9]} 43. Re5 {[%clk 0:03:08.5]} 43... b4 {[%clk 0:03:56.6]} 44. Re3
{[%clk 0:03:02.4]} 44... h4 {[%clk 0:03:55.7]} 45. Re1 {[%clk 0:03:00.3]} 45...
h3 {[%clk 0:03:54.8]} 46. Rg1+ {[%clk 0:02:59.3]} 46... Kh4 {[%clk 0:03:54.1]}
47. Rh1 {[%clk 0:02:58.2]} 47... Kg3 {[%clk 0:03:53.1]} 48. Rg1+ {[%clk
0:02:57]} 48... Kf2 {[%clk 0:03:52.4]} 49. Rh1 {[%clk 0:02:54]} 49... Kg2 {[%clk
0:03:51.4]} 50. Rd1 {[%clk 0:02:51.9]} 50... h2 {[%clk 0:03:50.2]} 51. Rd2+
{[%clk 0:02:51.1]} 51... Rf2 {[%clk 0:03:49]} 52. Rd4 {[%clk 0:02:48.9]} 52...
h1=Q {[%clk 0:03:48]} 53. Rxb4 {[%clk 0:02:47.8]} 53... Qb1+ {[%clk 0:03:45.8]}
54. Kc3 {[%clk 0:02:46.7]} 54... Rf3+ {[%clk 0:03:44.9]} 55. Kc4 {[%clk
0:02:45.3]} 55... Rf4+ {[%clk 0:03:44]} 56. Kc3 {[%clk 0:02:42.1]} 56... Qxb4+
{[%clk 0:03:42.6]} 57. Kd3 {[%clk 0:02:41.2]} 57... Rd4+ {[%clk 0:03:41.9]} 58.
Ke3 {[%clk 0:02:40.3]} 58... Qc3+ {[%clk 0:03:41.5]} 59. Ke2 {[%clk 0:02:39]}
59... Rd2+ {[%clk 0:03:41.4]} 60. Ke1 {[%clk 0:02:37.6]} 60... Qc1# {[%clk
0:03:41.3]} 0-1

[Event "Live Chess"]
[Site "Chess.com"]
[Date "2023.05.20"]
[Round "-"]
[White "gmnorfolk"]
[Black "LaupMiths"]
[Result "1-0"]
[WhiteElo "2046"]
[BlackElo "1804"]
[TimeControl "300"]
[EndTime "12:57:34 PDT"]
[Termination "gmnorfolk won by resignation"]

1. d4 {[%clk 0:04:58.4]} 1... d5 {[%clk 0:04:58.5]} 2. c4 {[%clk 0:04:56.9]}
2... e6 {[%clk 0:04:56.8]} 3. Nf3 {[%clk 0:04:56]} 3... c5 {[%clk 0:04:55.7]} 4.
cxd5 {[%clk 0:04:50.7]} 4... exd5 {[%clk 0:04:54.9]} 5. Bg5 {[%clk 0:04:50.4]}
5... Nf6 {[%clk 0:04:52.9]} 6. Nbd2 {[%clk 0:04:42.2]} 6... Nc6 {[%clk
0:04:48.6]} 7. g3 {[%clk 0:04:39]} 7... h6 {[%clk 0:04:46]} 8. Bxf6 {[%clk
0:04:37.6]} 8... Qxf6 {[%clk 0:04:45.9]} 9. Bg2 {[%clk 0:04:35.6]} 9... cxd4
{[%clk 0:04:43.2]} 10. O-O {[%clk 0:04:34]} 10... Bd6 {[%clk 0:04:40.7]} 11. Nb3
{[%clk 0:04:33.5]} 11... O-O {[%clk 0:04:37.4]} 12. Nbxd4 {[%clk 0:04:31.9]}
12... Re8 {[%clk 0:04:33.8]} 13. Rc1 {[%clk 0:04:29.2]} 13... Bd7 {[%clk
0:04:32]} 14. a3 {[%clk 0:04:15.5]} 14... Rad8 {[%clk 0:04:05.2]} 15. b4 {[%clk
0:03:50.1]} 15... Nxd4 {[%clk 0:04:01.5]} 16. Nxd4 {[%clk 0:03:47]} 16... Be5
{[%clk 0:04:00.6]} 17. e3 {[%clk 0:03:45.5]} 17... Bxd4 {[%clk 0:03:47.6]} 18.
Qxd4 {[%clk 0:03:42.4]} 18... Qxd4 {[%clk 0:03:44.1]} 19. exd4 {[%clk
0:03:40.8]} 19... Bc6 {[%clk 0:03:40.2]} 20. Rc5 {[%clk 0:03:38]} 20... Re2
{[%clk 0:03:37.3]} 21. b5 {[%clk 0:03:34.5]} 21... Be8 {[%clk 0:03:35.7]} 22.
Rfc1 {[%clk 0:03:24.5]} 22... Rd2 {[%clk 0:03:33]} 23. Rc8 {[%clk 0:03:23.1]}
23... Rxc8 {[%clk 0:03:27.4]} 24. Rxc8 {[%clk 0:03:21.9]} 24... Kf8 {[%clk
0:03:27.2]} 25. Bxd5 {[%clk 0:03:16.6]} 25... Rxd4 {[%clk 0:03:25.4]} 26. Bxb7
{[%clk 0:03:15.4]} 26... Ke7 {[%clk 0:03:18.5]} 27. Bc6 {[%clk 0:03:03]} 27...
Bxc6 {[%clk 0:03:08.8]} 28. Rxc6 {[%clk 0:02:47.9]} 28... Rd6 {[%clk 0:03:03.5]}
29. Rc7+ {[%clk 0:02:43.6]} 29... Rd7 {[%clk 0:03:03.1]} 30. Rc3 {[%clk
0:02:39]} 30... Rb7 {[%clk 0:02:58.4]} 31. a4 {[%clk 0:02:37.4]} 31... Kd6
{[%clk 0:02:54.3]} 32. Rc6+ {[%clk 0:02:35.4]} 32... Kd5 {[%clk 0:02:52.6]} 33.
Ra6 {[%clk 0:02:34.2]} 33... Kc5 {[%clk 0:02:50.4]} 34. Kg2 {[%clk 0:02:29.5]}
34... Re7 {[%clk 0:02:38.6]} 35. h4 {[%clk 0:02:24.5]} 35... g6 {[%clk
0:02:30.2]} 36. Kf3 {[%clk 0:02:21.5]} 36... h5 {[%clk 0:02:29.2]} 37. Kf4
{[%clk 0:02:19.4]} 37... Re2 {[%clk 0:02:17.1]} 38. f3 {[%clk 0:02:17.9]} 38...
Re7 {[%clk 0:02:15.2]} 39. g4 {[%clk 0:02:14.1]} 39... Rd7 {[%clk 0:02:10.1]}
40. gxh5 {[%clk 0:02:05.2]} 40... gxh5 {[%clk 0:02:10]} 41. Kg5 {[%clk
0:01:57.4]} 41... Rd5+ {[%clk 0:02:07]} 42. Kf6 {[%clk 0:01:56.5]} 42... Rd3
{[%clk 0:02:05.6]} 43. f4 {[%clk 0:01:54.3]} 43... Rd7 {[%clk 0:01:53.7]} 44. f5
{[%clk 0:01:51.4]} 44... Kd4 {[%clk 0:01:50]} 45. Kg5 {[%clk 0:01:46.7]} 45...
Ke4 {[%clk 0:01:47.8]} 46. f6 {[%clk 0:01:41.4]} 46... Rd5+ {[%clk 0:01:45.3]}
47. Kh6 {[%clk 0:01:39.1]} 47... Kf4 {[%clk 0:01:35.3]} 48. Rxa7 {[%clk
0:01:27.2]} 48... Kg4 {[%clk 0:01:29.7]} 49. b6 {[%clk 0:01:15.7]} 49... Rd6
{[%clk 0:01:25.7]} 50. b7 {[%clk 0:01:14.3]} 50... Rxf6+ {[%clk 0:01:24.1]} 51.
Kg7 {[%clk 0:01:13]} 51... Rb6 {[%clk 0:01:23.3]} 52. a5 {[%clk 0:01:11.9]}
52... Rb5 {[%clk 0:01:21.7]} 53. Kxf7 {[%clk 0:01:07.7]} 53... Kxh4 {[%clk
0:01:20.2]} 54. a6 {[%clk 0:01:07.2]} 54... Kg3 {[%clk 0:01:19.2]} 55. Ra8
{[%clk 0:01:06.4]} 55... Rg5 {[%clk 0:01:16.3]} 56. Rg8 {[%clk 0:01:04]} 1-0

[Event "Live Chess"]
[Site "Chess.com"]
[Date "2023.05.20"]
[Round "-"]
[White "ProfPoisson"]
[Black "whitedjohn"]
[Result "0-1"]
[WhiteElo "1058"]
[BlackElo "1661"]
[TimeControl "300"]
[EndTime "12:57:36 PDT"]
[Termination "whitedjohn won by resignation"]

1. e4 {[%clk 0:04:52.4]} 1... Nf6 {[%clk 0:04:58.6]} 2. e5 {[%clk 0:04:50.6]}
2... Nd5 {[%clk 0:04:56]} 3. Nf3 {[%clk 0:04:44.5]} 3... d6 {[%clk 0:04:54.3]}
4. Bc4 {[%clk 0:04:41.6]} 4... dxe5 {[%clk 0:04:45.7]} 5. Nxe5 {[%clk 0:04:38]}
5... Bf5 {[%clk 0:04:40.5]} 6. Qf3 {[%clk 0:04:33.4]} 6... e6 {[%clk 0:04:39.1]}
7. O-O {[%clk 0:04:15]} 7... Bd6 {[%clk 0:04:36.4]} 8. d4 {[%clk 0:04:07.1]}
8... Bxe5 {[%clk 0:04:20.8]} 9. dxe5 {[%clk 0:04:02.7]} 9... O-O {[%clk
0:04:18.7]} 10. Na3 {[%clk 0:03:33.2]} 10... Nb6 {[%clk 0:04:12]} 11. Qxb7
{[%clk 0:03:25.1]} 11... N8d7 {[%clk 0:04:10.1]} 12. Qf3 {[%clk 0:03:14.7]}
12... Nxc4 {[%clk 0:04:06.7]} 13. Nxc4 {[%clk 0:03:11.8]} 13... Bxc2 {[%clk
0:04:05.2]} 14. Be3 {[%clk 0:02:59.7]} 14... Bg6 {[%clk 0:04:02.1]} 15. Rad1
{[%clk 0:02:56.3]} 15... Qe7 {[%clk 0:03:57.9]} 16. Qc6 {[%clk 0:02:47.5]} 16...
Nb6 {[%clk 0:03:52.9]} 17. Bc5 {[%clk 0:02:39.2]} 17... Qh4 {[%clk 0:03:43.3]}
18. Bxf8 {[%clk 0:02:24.9]} 18... Qxc4 {[%clk 0:03:42.6]} 19. Qxc4 {[%clk
0:02:11.2]} 19... Nxc4 {[%clk 0:03:41.9]} 20. Ba3 {[%clk 0:02:04]} 20... Nxe5
{[%clk 0:03:37.3]} 21. f4 {[%clk 0:01:50.6]} 21... Nc4 {[%clk 0:03:34.7]} 22.
Rd7 {[%clk 0:01:46.4]} 22... Nxa3 {[%clk 0:03:31.1]} 23. bxa3 {[%clk 0:01:43.8]}
23... Rc8 {[%clk 0:03:28.9]} 24. Rfd1 {[%clk 0:01:40.2]} 24... Kf8 {[%clk
0:03:22.6]} 25. Rd8+ {[%clk 0:01:37.4]} 25... Rxd8 {[%clk 0:03:20.2]} 26. Rxd8+
{[%clk 0:01:37]} 26... Ke7 {[%clk 0:03:18.4]} 27. Ra8 {[%clk 0:01:35.9]} 27...
Bb1 {[%clk 0:03:11.9]} 28. Rxa7 {[%clk 0:01:33.3]} 28... Kd6 {[%clk 0:03:10.5]}
29. g3 {[%clk 0:01:29.5]} 29... Bxa2 {[%clk 0:03:07.5]} 30. Kf2 {[%clk
0:01:28.3]} 30... f5 {[%clk 0:02:58.4]} 31. Ke3 {[%clk 0:01:26.9]} 31... Bc4
{[%clk 0:02:54.3]} 32. Kd4 {[%clk 0:01:22.5]} 32... Bd5 {[%clk 0:02:51.1]} 33.
a4 {[%clk 0:01:20]} 33... h6 {[%clk 0:02:49.7]} 34. a5 {[%clk 0:01:18.5]} 34...
g5 {[%clk 0:02:48.4]} 35. fxg5 {[%clk 0:01:08.6]} 35... hxg5 {[%clk 0:02:46.1]}
36. h4 {[%clk 0:00:46.5]} 36... f4 {[%clk 0:02:40.5]} 37. gxf4 {[%clk
0:00:39.7]} 37... gxh4 {[%clk 0:02:39.1]} 38. Ke3 {[%clk 0:00:18.3]} 38... h3
{[%clk 0:02:37]} 39. Rxc7 {[%clk 0:00:13.9]} 39... Kxc7 {[%clk 0:02:33.3]} 40.
Kf2 {[%clk 0:00:12]} 40... h2 {[%clk 0:02:30.3]} 0-1

[Event "Live Chess"]
[Site "Chess.com"]
[Date "2023.05.20"]
[Round "-"]
[White "f4nomore"]
[Black "rideuv21"]
[Result "1/2-1/2"]
[WhiteElo "1364"]
[BlackElo "1815"]
[TimeControl "300"]
[EndTime "12:57:41 PDT"]
[Termination "Game drawn by repetition"]

1. b3 {[%clk 0:04:58.6]} 1... c5 {[%clk 0:04:59.9]} 2. Bb2 {[%clk 0:04:57.4]}
2... Nc6 {[%clk 0:04:59.5]} 3. Nc3 {[%clk 0:04:55.4]} 3... Nf6 {[%clk
0:04:58.3]} 4. e3 {[%clk 0:04:54.5]} 4... g6 {[%clk 0:04:56.9]} 5. f4 {[%clk
0:04:53.6]} 5... Bg7 {[%clk 0:04:55.5]} 6. Nf3 {[%clk 0:04:53.1]} 6... O-O
{[%clk 0:04:54]} 7. Be2 {[%clk 0:04:53]} 7... d5 {[%clk 0:04:53]} 8. O-O {[%clk
0:04:52.9]} 8... d4 {[%clk 0:04:47.9]} 9. exd4 {[%clk 0:04:50.9]} 9... Nxd4
{[%clk 0:04:47.8]} 10. Nxd4 {[%clk 0:04:48.8]} 10... Qxd4+ {[%clk 0:04:47.7]}
11. Kh1 {[%clk 0:04:43.4]} 11... Ne4 {[%clk 0:04:46.8]} 12. Rb1 {[%clk
0:04:32.2]} 12... Nf2+ {[%clk 0:04:44.9]} 13. Rxf2 {[%clk 0:04:28.6]} 13... Qxf2
{[%clk 0:04:44.8]} 14. Ne4 {[%clk 0:04:25.2]} 14... Qxf4 {[%clk 0:04:42.4]} 15.
Bf3 {[%clk 0:04:20.7]} 15... Bxb2 {[%clk 0:04:40.3]} 16. Rxb2 {[%clk 0:04:18.9]}
16... Bf5 {[%clk 0:04:40.2]} 17. Nxc5 {[%clk 0:04:12]} 17... Rad8 {[%clk
0:04:39.8]} 18. d3 {[%clk 0:04:05.3]} 18... b6 {[%clk 0:04:34.5]} 19. Ne4 {[%clk
0:03:58.8]} 19... Bxe4 {[%clk 0:04:24.6]} 20. Bxe4 {[%clk 0:03:56.6]} 20... Qxe4
{[%clk 0:04:23.9]} 21. Rb1 {[%clk 0:03:50.7]} 21... Qe3 {[%clk 0:04:18.4]} 22.
Qg4 {[%clk 0:03:44.4]} 22... e5 {[%clk 0:04:16]} 23. Qc4 {[%clk 0:03:35.2]}
23... e4 {[%clk 0:04:12.6]} 24. dxe4 {[%clk 0:03:26.4]} 24... Rd2 {[%clk
0:04:05.5]} 25. Rg1 {[%clk 0:03:21]} 25... Rfd8 {[%clk 0:03:59.1]} 26. Rf1
{[%clk 0:03:16]} 26... Rd1 {[%clk 0:03:45.7]} 27. Qxf7+ {[%clk 0:03:12.2]} 27...
Kh8 {[%clk 0:03:41.7]} 28. Qf6+ {[%clk 0:03:11]} 28... Kg8 {[%clk 0:03:40.7]}
29. Qf7+ {[%clk 0:03:10.1]} 29... Kh8 {[%clk 0:03:40.3]} 30. Qf6+ {[%clk
0:03:09.2]} 30... Kg8 {[%clk 0:03:40.2]} 31. Qf7+ {[%clk 0:03:08.4]} 1/2-1/2

[Event "Live Chess"]
[Site "Chess.com"]
[Date "2023.05.20"]
[Round "-"]
[White "zdanevych"]
[Black "Andysav3"]
[Result "0-1"]
[WhiteElo "1527"]
[BlackElo "1700"]
[TimeControl "300"]
[EndTime "12:57:43 PDT"]
[Termination "Andysav3 won by resignation"]

1. d4 {[%clk 0:04:58.9]} 1... Nf6 {[%clk 0:04:58.6]} 2. c4 {[%clk 0:04:58.3]}
2... e5 {[%clk 0:04:57]} 3. dxe5 {[%clk 0:04:57]} 3... Ng4 {[%clk 0:04:56]} 4.
Nf3 {[%clk 0:04:56]} 4... Bc5 {[%clk 0:04:50.5]} 5. e3 {[%clk 0:04:54.4]} 5...
Nc6 {[%clk 0:04:44.4]} 6. h3 {[%clk 0:04:52.7]} 6... Ngxe5 {[%clk 0:04:28.7]} 7.
Nxe5 {[%clk 0:04:48.8]} 7... Nxe5 {[%clk 0:04:27.3]} 8. Be2 {[%clk 0:04:47.3]}
8... d6 {[%clk 0:04:22.7]} 9. O-O {[%clk 0:04:44.5]} 9... O-O {[%clk 0:04:18.4]}
10. b3 {[%clk 0:04:43.7]} 10... c6 {[%clk 0:03:45.2]} 11. Bb2 {[%clk 0:04:34.7]}
11... Qe7 {[%clk 0:03:42.1]} 12. Nd2 {[%clk 0:04:28.7]} 12... Bf5 {[%clk
0:03:36.4]} 13. Nf3 {[%clk 0:04:25.6]} 13... Nxf3+ {[%clk 0:03:29]} 14. Bxf3
{[%clk 0:04:25.5]} 14... Rad8 {[%clk 0:03:26.4]} 15. Qc2 {[%clk 0:04:02.9]}
15... Bxc2 {[%clk 0:03:23.3]} 0-1

[Event "Live Chess"]
[Site "Chess.com"]
[Date "2023.05.20"]
[Round "-"]
[White "bristolunichess"]
[Black "toog"]
[Result "0-1"]
[WhiteElo "1772"]
[BlackElo "2613"]
[TimeControl "300"]
[EndTime "12:57:52 PDT"]
[Termination "toog won by resignation"]

1. e4 {[%clk 0:04:58.8]} 1... e5 {[%clk 0:04:58.6]} 2. Nf3 {[%clk 0:04:57.7]}
2... Nc6 {[%clk 0:04:56.7]} 3. d4 {[%clk 0:04:55.1]} 3... exd4 {[%clk
0:04:55.3]} 4. Nxd4 {[%clk 0:04:55]} 4... Nf6 {[%clk 0:04:54]} 5. Nxc6 {[%clk
0:04:54.3]} 5... bxc6 {[%clk 0:04:52.9]} 6. e5 {[%clk 0:04:54]} 6... Qe7 {[%clk
0:04:52.5]} 7. Qe2 {[%clk 0:04:53.7]} 7... Nd5 {[%clk 0:04:52]} 8. h4 {[%clk
0:04:53.4]} 8... f6 {[%clk 0:04:48.7]} 9. c4 {[%clk 0:04:51.4]} 9... Nb6 {[%clk
0:04:47.4]} 10. exf6 {[%clk 0:04:49.5]} 10... Qxe2+ {[%clk 0:04:44.7]} 11. Bxe2
{[%clk 0:04:49.4]} 11... gxf6 {[%clk 0:04:44.1]} 12. Bh5+ {[%clk 0:04:42.4]}
12... Kd8 {[%clk 0:04:42.8]} 13. b3 {[%clk 0:04:34.6]} 13... Bd6 {[%clk
0:04:39.5]} 14. O-O {[%clk 0:04:26.4]} 14... Be5 {[%clk 0:04:38.4]} 15. Bh6
{[%clk 0:04:12.7]} 15... Bxa1 {[%clk 0:04:36.7]} 16. Bg7 {[%clk 0:04:12.3]}
16... Rg8 {[%clk 0:04:34.2]} 17. Re1 {[%clk 0:04:08.7]} 17... d6 {[%clk
0:04:29.5]} 18. Nd2 {[%clk 0:04:04.6]} 18... Bc3 {[%clk 0:04:27]} 19. Re3 {[%clk
0:03:50.8]} 19... Rxg7 {[%clk 0:04:20.3]} 20. Rxc3 {[%clk 0:03:48.5]} 20... Bf5
{[%clk 0:04:18.3]} 0-1

[Event "Live Chess"]
[Site "Chess.com"]
[Date "2023.05.20"]
[Round "-"]
[White "DmitryVasliev"]
[Black "omisoc"]
[Result "1-0"]
[WhiteElo "1676"]
[BlackElo "2143"]
[TimeControl "300"]
[EndTime "12:57:54 PDT"]
[Termination "DmitryVasliev won on time"]

1. d4 {[%clk 0:04:58.3]} 1... g6 {[%clk 0:04:57.6]} 2. Bf4 {[%clk 0:04:56.9]}
2... d6 {[%clk 0:04:55.4]} 3. h3 {[%clk 0:04:56.3]} 3... Bg7 {[%clk 0:04:53]} 4.
Bh2 {[%clk 0:04:55.4]} 4... b6 {[%clk 0:04:52.2]} 5. e3 {[%clk 0:04:54.6]} 5...
Ba6 {[%clk 0:04:47]} 6. Bxa6 {[%clk 0:04:51.9]} 6... Nxa6 {[%clk 0:04:46.9]} 7.
c3 {[%clk 0:04:51.2]} 7... Qd7 {[%clk 0:04:40.9]} 8. Nd2 {[%clk 0:04:46.2]} 8...
Nf6 {[%clk 0:04:39.2]} 9. Qe2 {[%clk 0:04:36.8]} 9... Qc8 {[%clk 0:04:32.3]} 10.
b4 {[%clk 0:04:29.7]} 10... O-O {[%clk 0:04:27.3]} 11. b5 {[%clk 0:04:25.8]}
11... Nb8 {[%clk 0:04:25.7]} 12. c4 {[%clk 0:04:08.8]} 12... a6 {[%clk
0:04:24.2]} 13. Qf3 {[%clk 0:04:01.4]} 13... Ra7 {[%clk 0:04:21.7]} 14. Nb3
{[%clk 0:03:55.8]} 14... c6 {[%clk 0:04:13.6]} 15. bxc6 {[%clk 0:03:51.9]} 15...
Nxc6 {[%clk 0:04:11.6]} 16. a3 {[%clk 0:03:41.4]} 16... d5 {[%clk 0:03:45]} 17.
cxd5 {[%clk 0:03:21.4]} 17... Nb4 {[%clk 0:03:41.9]} 18. axb4 {[%clk 0:03:10.9]}
18... Qc3+ {[%clk 0:03:39.7]} 19. Ke2 {[%clk 0:03:07.5]} 19... Qxb3 {[%clk
0:03:33.6]} 20. Rd1 {[%clk 0:02:48.2]} 20... Rc8 {[%clk 0:03:23.2]} 21. e4
{[%clk 0:02:39.8]} 21... Rc3 {[%clk 0:03:13.9]} 22. Qf4 {[%clk 0:02:30.4]} 22...
Rac7 {[%clk 0:02:38.8]} 23. Nf3 {[%clk 0:02:11.9]} 23... Qc4+ {[%clk 0:02:33.5]}
24. Ke1 {[%clk 0:02:03.3]} 24... Qxb4 {[%clk 0:02:25.9]} 25. Kf1 {[%clk
0:01:52.3]} 25... Qb3 {[%clk 0:01:41.9]} 26. Re1 {[%clk 0:01:39.2]} 26... Rc2
{[%clk 0:00:35.4]} 27. g4 {[%clk 0:01:04.3]} 27... h6 {[%clk 0:00:07.2]} 28. Kg2
{[%clk 0:00:48.6]} 28... g5 {[%clk 0:00:06]} 29. Nxg5 {[%clk 0:00:26.8]} 29...
hxg5 {[%clk 0:00:04]} 30. Qxg5 {[%clk 0:00:26.1]} 30... Qd3 {[%clk 0:00:02.7]}
31. Bxc7 {[%clk 0:00:12.1]} 31... Rxc7 {[%clk 0:00:02.6]} 32. Qf4 {[%clk
0:00:10.1]} 32... Rc2 {[%clk 0:00:00.3]} 33. d6 {[%clk 0:00:06.2]} 1-0

[Event "Live Chess"]
[Site "Chess.com"]
[Date "2023.05.20"]
[Round "-"]
[White "ACx04"]
[Black "birdseed45"]
[Result "0-1"]
[WhiteElo "429"]
[BlackElo "1878"]
[TimeControl "300"]
[EndTime "12:57:58 PDT"]
[Termination "birdseed45 won by checkmate"]

1. e4 {[%clk 0:04:55.8]} 1... c5 {[%clk 0:04:59]} 2. d4 {[%clk 0:04:52.4]} 2...
cxd4 {[%clk 0:04:57]} 3. Qxd4 {[%clk 0:04:51.4]} 3... Nc6 {[%clk 0:04:54]} 4.
Qd5 {[%clk 0:04:49.7]} 4... Nf6 {[%clk 0:04:51.2]} 5. Qd3 {[%clk 0:04:47.4]}
5... e5 {[%clk 0:04:48.6]} 6. g3 {[%clk 0:04:44.7]} 6... d6 {[%clk 0:04:45.5]}
7. f4 {[%clk 0:04:43.2]} 7... exf4 {[%clk 0:04:42.5]} 8. gxf4 {[%clk 0:04:42]}
8... Bg4 {[%clk 0:04:38.7]} 9. Be3 {[%clk 0:04:36.9]} 9... Be7 {[%clk 0:04:34]}
10. Be2 {[%clk 0:04:35.6]} 10... Bxe2 {[%clk 0:04:31.3]} 11. Nxe2 {[%clk
0:04:34.3]} 11... Qa5+ {[%clk 0:04:28.6]} 12. Nbc3 {[%clk 0:04:32.7]} 12... Nb4
{[%clk 0:04:21.8]} 13. Qd2 {[%clk 0:04:24.3]} 13... O-O {[%clk 0:03:56]} 14. a3
{[%clk 0:04:21.6]} 14... Rac8 {[%clk 0:03:46.7]} 15. Qc1 {[%clk 0:04:08.4]}
15... Nc6 {[%clk 0:03:38.3]} 16. b4 {[%clk 0:04:05.3]} 16... Qh5 {[%clk
0:03:35]} 17. Nb5 {[%clk 0:03:54.7]} 17... Nxe4 {[%clk 0:03:28.5]} 18. Qd1
{[%clk 0:03:39.4]} 18... Bh4+ {[%clk 0:03:19.3]} 19. Kf1 {[%clk 0:03:33.2]}
19... Qf3+ {[%clk 0:03:14.7]} 20. Kg1 {[%clk 0:03:29.2]} 20... Qxe3+ {[%clk
0:03:11.9]} 21. Kg2 {[%clk 0:03:25.3]} 21... Bf6 {[%clk 0:02:59]} 22. Rc1 {[%clk
0:03:18.1]} 22... Qf2+ {[%clk 0:02:54]} 23. Kh3 {[%clk 0:03:11.6]} 23... Qf3+
{[%clk 0:02:51.5]} 24. Ng3 {[%clk 0:02:59.5]} 24... Nf2# {[%clk 0:02:51.4]} 0-1

[Event "Live Chess"]
[Site "Chess.com"]
[Date "2023.05.20"]
[Round "-"]
[White "BostonStrangler"]
[Black "Duke_of_Bebington"]
[Result "1-0"]
[WhiteElo "2085"]
[BlackElo "1607"]
[TimeControl "300"]
[EndTime "12:57:59 PDT"]
[Termination "BostonStrangler won by resignation"]

1. Nf3 {[%clk 0:04:58.3]} 1... d5 {[%clk 0:04:58.8]} 2. g3 {[%clk 0:04:57.3]}
2... c5 {[%clk 0:04:54.6]} 3. Bg2 {[%clk 0:04:56.8]} 3... Nc6 {[%clk 0:04:53.9]}
4. O-O {[%clk 0:04:55.1]} 4... Bf5 {[%clk 0:04:52.7]} 5. c4 {[%clk 0:04:53.7]}
5... e6 {[%clk 0:04:51.2]} 6. cxd5 {[%clk 0:04:51.1]} 6... exd5 {[%clk
0:04:51.1]} 7. d4 {[%clk 0:04:50.2]} 7... Nf6 {[%clk 0:04:47.3]} 8. Nc3 {[%clk
0:04:48.1]} 8... Ne4 {[%clk 0:04:38.8]} 9. dxc5 {[%clk 0:04:41.6]} 9... Nxc3
{[%clk 0:04:34.4]} 10. bxc3 {[%clk 0:04:40.4]} 10... Bxc5 {[%clk 0:04:33]} 11.
Nd4 {[%clk 0:04:36.6]} 11... Bg6 {[%clk 0:04:23.2]} 12. Nxc6 {[%clk 0:04:35]}
12... bxc6 {[%clk 0:04:21.9]} 13. c4 {[%clk 0:04:34.7]} 13... O-O {[%clk
0:03:59.5]} 14. cxd5 {[%clk 0:04:32.9]} 14... cxd5 {[%clk 0:03:55.5]} 15. Qxd5
{[%clk 0:04:31.8]} 15... Rc8 {[%clk 0:03:49.9]} 16. Qxd8 {[%clk 0:04:12.7]}
16... Rfxd8 {[%clk 0:03:49.8]} 17. Bf4 {[%clk 0:04:11.2]} 17... h6 {[%clk
0:03:32.7]} 18. Rac1 {[%clk 0:04:05]} 18... Ba3 {[%clk 0:03:29.5]} 19. Rxc8
{[%clk 0:03:59.5]} 19... Rxc8 {[%clk 0:03:29.4]} 20. Be3 {[%clk 0:03:50.6]}
20... Rc2 {[%clk 0:03:25.9]} 21. Bf3 {[%clk 0:03:40.1]} 21... Rxa2 {[%clk
0:03:23.5]} 22. Bxa7 {[%clk 0:03:36.7]} 22... Bb4 {[%clk 0:03:06.4]} 23. Bd4
{[%clk 0:03:28.2]} 23... f6 {[%clk 0:02:47.9]} 24. Bd5+ {[%clk 0:03:25.8]} 24...
Kh7 {[%clk 0:02:46.2]} 25. Bxa2 {[%clk 0:03:24.1]} 1-0